[Event "*** Titled Tuesday Blitz"]
[Site "Chess.com"]
[Date "2019.01.01"]
[Round "4"]
[White "Makalexa"]
[Black "volcanoexplorer"]
[Result "0-1"]
[WhiteElo "2123"]
[BlackElo "2349"]
[TimeControl "180+2"]
[EndTime "13:54:31 PST"]
[Termination "volcanoexplorer won by checkmate"]

1. e4 {[%clk 0:03:01.9]} 1... e5 {[%clk 0:03:00.8]} 2. Nf3 {[%clk 0:03:02.2]}
2... Nc6 {[%clk 0:03:02.1]} 3. Bb5 {[%clk 0:03:01.3]} 3... a6 {[%clk 0:03:02.9]}
4. Ba4 {[%clk 0:02:55.6]} 4... Nf6 {[%clk 0:03:03]} 5. O-O {[%clk 0:02:55.9]}
5... Be7 {[%clk 0:03:03.4]} 6. Re1 {[%clk 0:02:56.3]} 6... b5 {[%clk 0:03:04.5]}
7. Bb3 {[%clk 0:02:57.4]} 7... O-O {[%clk 0:03:06.1]} 8. a4 {[%clk 0:02:56.9]}
8... b4 {[%clk 0:03:07.2]} 9. d4 {[%clk 0:02:54.9]} 9... d6 {[%clk 0:03:08.5]}
10. d5 {[%clk 0:02:44.9]} 10... Na5 {[%clk 0:02:53.1]} 11. Ba2 {[%clk
0:02:35.2]} 11... Bd7 {[%clk 0:02:46.1]} 12. Nbd2 {[%clk 0:02:15.3]} 12... Nb7
{[%clk 0:02:31.7]} 13. Bc4 {[%clk 0:02:04.5]} 13... a5 {[%clk 0:02:29.1]} 14.
Nb3 {[%clk 0:01:49.3]} 14... Qe8 {[%clk 0:02:12.9]} 15. Nh4 {[%clk 0:01:43.6]}
15... Nxe4 {[%clk 0:01:44.7]} 16. Rxe4 {[%clk 0:01:39.9]} 16... f5 {[%clk
0:01:45.7]} 17. Nxf5 {[%clk 0:01:35.3]} 17... Bxf5 {[%clk 0:01:46.1]} 18. Re1
{[%clk 0:01:34.6]} 18... Qg6 {[%clk 0:01:43.2]} 19. Bd3 {[%clk 0:01:22.5]} 19...
Bh4 {[%clk 0:01:34.9]} 20. g3 {[%clk 0:01:17.5]} 20... e4 {[%clk 0:01:28.4]} 21.
Bf1 {[%clk 0:01:17]} 21... Bf6 {[%clk 0:01:14.5]} 22. Nd4 {[%clk 0:01:14.4]}
22... Nc5 {[%clk 0:01:10.2]} 23. Nxf5 {[%clk 0:01:14.2]} 23... Qxf5 {[%clk
0:01:10.9]} 24. Be3 {[%clk 0:01:15.3]} 24... Bxb2 {[%clk 0:01:09.7]} 25. Bd4
{[%clk 0:01:00]} 25... Bxa1 {[%clk 0:00:57.9]} 26. Qxa1 {[%clk 0:01:00.6]} 26...
Rf7 {[%clk 0:00:56.6]} 27. h4 {[%clk 0:00:58.8]} 27... Raf8 {[%clk 0:00:50.2]}
28. Kh2 {[%clk 0:00:59.3]} 28... Qg4 {[%clk 0:00:47.4]} 29. Bh3 {[%clk
0:00:58.9]} 29... Rxf2+ {[%clk 0:00:42.4]} 30. Bxf2 {[%clk 0:00:38.7]} 30...
Rxf2+ {[%clk 0:00:44.3]} 31. Bg2 {[%clk 0:00:36.4]} 31... Qf3 {[%clk 0:00:44.9]}
32. Rg1 {[%clk 0:00:35.7]} 32... e3 {[%clk 0:00:42.6]} 33. Qd4 {[%clk
0:00:33.3]} 33... Ne4 {[%clk 0:00:33.6]} 34. Kh1 {[%clk 0:00:18.2]} 34... Nxg3+
{[%clk 0:00:33.9]} 35. Kh2 {[%clk 0:00:19.3]} 35... Nf1+ {[%clk 0:00:31.2]} 36.
Kh1 {[%clk 0:00:20.2]} 36... Qh3+ {[%clk 0:00:32.2]} 37. Bxh3 {[%clk 0:00:19.3]}
37... Rh2# {[%clk 0:00:33.4]} 0-1

[Event "*** Titled Tuesday Blitz"]
[Site "Chess.com"]
[Date "2019.01.01"]
[Round "4"]
[White "MissingLife"]
[Black "OparinGrigoriy"]
[Result "0-1"]
[WhiteElo "2544"]
[BlackElo "2922"]
[TimeControl "180+2"]
[EndTime "13:54:32 PST"]
[Termination "OparinGrigoriy won by resignation"]

1. Nf3 {[%clk 0:03:01.9]} 1... Nf6 {[%clk 0:03:00.8]} 2. g3 {[%clk 0:03:02.8]}
2... b6 {[%clk 0:03:02.4]} 3. Bg2 {[%clk 0:03:03.7]} 3... Bb7 {[%clk 0:03:04.3]}
4. c4 {[%clk 0:03:05.1]} 4... e6 {[%clk 0:03:05.8]} 5. Nc3 {[%clk 0:03:06.5]}
5... Be7 {[%clk 0:03:06.9]} 6. O-O {[%clk 0:03:07.9]} 6... O-O {[%clk
0:03:08.5]} 7. d3 {[%clk 0:03:06.7]} 7... d5 {[%clk 0:03:09.5]} 8. cxd5 {[%clk
0:03:07]} 8... Nxd5 {[%clk 0:03:11.4]} 9. e4 {[%clk 0:03:02.2]} 9... Nxc3 {[%clk
0:03:12.5]} 10. bxc3 {[%clk 0:03:04.1]} 10... c5 {[%clk 0:03:14.4]} 11. Qe2
{[%clk 0:02:59.8]} 11... Nc6 {[%clk 0:03:15.6]} 12. Rd1 {[%clk 0:03:00.5]} 12...
Rc8 {[%clk 0:03:17.2]} 13. Bb2 {[%clk 0:02:56.3]} 13... Qd7 {[%clk 0:03:16.6]}
14. d4 {[%clk 0:02:55.7]} 14... cxd4 {[%clk 0:03:18.5]} 15. cxd4 {[%clk
0:02:56.3]} 15... Na5 {[%clk 0:03:19.4]} 16. Ne5 {[%clk 0:02:48.3]} 16... Qa4
{[%clk 0:03:20.2]} 17. d5 {[%clk 0:02:43.6]} 17... exd5 {[%clk 0:03:21.1]} 18.
exd5 {[%clk 0:02:45.1]} 18... Bf6 {[%clk 0:03:22.6]} 19. Rd4 {[%clk 0:02:36.3]}
19... Qe8 {[%clk 0:03:19.2]} 20. f4 {[%clk 0:02:18.7]} 20... Rd8 {[%clk
0:03:00.8]} 21. Rad1 {[%clk 0:02:06.9]} 21... Qe7 {[%clk 0:02:45.7]} 22. Bh3
{[%clk 0:01:39.5]} 22... Qc5 {[%clk 0:02:31.4]} 23. Rc1 {[%clk 0:01:32.4]} 23...
Qd6 {[%clk 0:02:32.2]} 24. Bg2 {[%clk 0:01:10.3]} 24... Rfe8 {[%clk 0:02:32.9]}
25. Re1 {[%clk 0:01:11.2]} 25... Qc5 {[%clk 0:02:29.5]} 26. Rc1 {[%clk
0:01:08.2]} 26... Qd6 {[%clk 0:02:30.8]} 27. Re1 {[%clk 0:01:09]} 27... h6
{[%clk 0:02:31.9]} 28. Kh1 {[%clk 0:01:06.5]} 28... a6 {[%clk 0:02:21.6]} 29.
Rd3 {[%clk 0:00:56.6]} 29... Nc4 {[%clk 0:02:19.5]} 30. Bc3 {[%clk 0:00:46.3]}
30... b5 {[%clk 0:02:18.3]} 31. Qh5 {[%clk 0:00:30.3]} 31... Qc7 {[%clk
0:02:01]} 32. Qf5 {[%clk 0:00:26.4]} 32... b4 {[%clk 0:01:58.2]} 33. Ba1 {[%clk
0:00:26.4]} 33... Nd6 {[%clk 0:01:58.1]} 34. Qh5 {[%clk 0:00:26.3]} 34... a5
{[%clk 0:01:59.4]} 35. Red1 {[%clk 0:00:22.9]} 35... Bc8 {[%clk 0:01:56.6]} 36.
g4 {[%clk 0:00:23.8]} 36... Qe7 {[%clk 0:01:39.7]} 37. Nc6 {[%clk 0:00:23.6]}
37... Qe1+ {[%clk 0:01:40.8]} 38. Rxe1 {[%clk 0:00:22.3]} 38... Rxe1+ {[%clk
0:01:42.7]} 39. Bf1 {[%clk 0:00:23.9]} 39... Rxf1+ {[%clk 0:01:42.1]} 40. Kg2
{[%clk 0:00:24.7]} 40... Rxa1 {[%clk 0:01:42.8]} 41. Nxd8 {[%clk 0:00:26.4]}
41... Rxa2+ {[%clk 0:01:42.4]} 42. Kf3 {[%clk 0:00:27.5]} 42... Bxd8 {[%clk
0:01:35.1]} 43. Qe5 {[%clk 0:00:28.6]} 43... Bc7 {[%clk 0:01:36.4]} 44. Qe7
{[%clk 0:00:29.5]} 44... Rc2 {[%clk 0:01:35.5]} 45. f5 {[%clk 0:00:26]} 45... a4
{[%clk 0:01:32.7]} 46. f6 {[%clk 0:00:25.5]} 46... gxf6 {[%clk 0:01:33.3]} 47.
Qxf6 {[%clk 0:00:23.5]} 47... Rf2+ {[%clk 0:01:34.6]} 0-1

[Event "*** Titled Tuesday Blitz"]
[Site "Chess.com"]
[Date "2019.01.01"]
[Round "4"]
[White "Grandelicious"]
[Black "Kangoroo3000"]
[Result "1-0"]
[WhiteElo "2652"]
[BlackElo "2657"]
[TimeControl "180+2"]
[EndTime "13:54:34 PST"]
[Termination "Grandelicious won by resignation"]

1. e4 {[%clk 0:03:01.9]} 1... e6 {[%clk 0:03:01.2]} 2. d4 {[%clk 0:03:02.6]}
2... d5 {[%clk 0:03:02.4]} 3. Nd2 {[%clk 0:03:03.2]} 3... c5 {[%clk 0:03:02.8]}
4. Ngf3 {[%clk 0:03:03.7]} 4... Nf6 {[%clk 0:03:02.1]} 5. exd5 {[%clk
0:03:02.4]} 5... exd5 {[%clk 0:03:04]} 6. Bb5+ {[%clk 0:03:02.4]} 6... Bd7
{[%clk 0:03:05.5]} 7. Bxd7+ {[%clk 0:03:03.3]} 7... Nbxd7 {[%clk 0:03:07.4]} 8.
O-O {[%clk 0:03:04.5]} 8... Be7 {[%clk 0:03:08.6]} 9. dxc5 {[%clk 0:03:05.9]}
9... Nxc5 {[%clk 0:03:10.5]} 10. Re1 {[%clk 0:03:03.1]} 10... O-O {[%clk
0:03:11.6]} 11. Nf1 {[%clk 0:03:04.5]} 11... Ne6 {[%clk 0:03:11.1]} 12. Ng3
{[%clk 0:03:02.4]} 12... Bc5 {[%clk 0:03:11.4]} 13. Be3 {[%clk 0:03:00.3]} 13...
Qb6 {[%clk 0:03:11]} 14. Bxc5 {[%clk 0:03:01]} 14... Nxc5 {[%clk 0:03:12.5]} 15.
Qd4 {[%clk 0:03:01.9]} 15... Rfe8 {[%clk 0:03:04.6]} 16. Nf5 {[%clk 0:02:54.2]}
16... Qc7 {[%clk 0:02:49.8]} 17. Nh6+ {[%clk 0:01:41.6]} 17... Kf8 {[%clk
0:02:45.3]} 18. Ng5 {[%clk 0:01:42.9]} 18... Ne6 {[%clk 0:02:23.4]} 19. Qb4+
{[%clk 0:01:42]} 19... Qe7 {[%clk 0:01:47.2]} 20. Qxe7+ {[%clk 0:01:41.5]} 20...
Rxe7 {[%clk 0:01:45.5]} 21. Nhxf7 {[%clk 0:01:41]} 21... Rae8 {[%clk 0:01:30.8]}
22. Kf1 {[%clk 0:01:09.3]} 22... Ng4 {[%clk 0:00:53.4]} 23. Nxe6+ {[%clk
0:01:04]} 23... Rxe6 {[%clk 0:00:43]} 24. Rxe6 {[%clk 0:01:05.9]} 24... Rxe6
{[%clk 0:00:44.3]} 25. Ng5 {[%clk 0:01:07.6]} 25... Rc6 {[%clk 0:00:32.6]} 26.
h3 {[%clk 0:00:57.4]} 26... Ne5 {[%clk 0:00:17.4]} 27. c3 {[%clk 0:00:53]} 27...
h6 {[%clk 0:00:17.2]} 28. Nf3 {[%clk 0:00:52.6]} 28... Nxf3 {[%clk 0:00:17.6]}
29. gxf3 {[%clk 0:00:54.5]} 29... Kf7 {[%clk 0:00:17.8]} 30. Rd1 {[%clk
0:00:55]} 30... Ke6 {[%clk 0:00:18.6]} 31. Ke2 {[%clk 0:00:52]} 31... Rc4 {[%clk
0:00:19.8]} 32. Rg1 {[%clk 0:00:50.1]} 32... Kf6 {[%clk 0:00:13]} 33. Rg4 {[%clk
0:00:49.4]} 33... Rc6 {[%clk 0:00:09.5]} 34. h4 {[%clk 0:00:43.9]} 34... Ra6
{[%clk 0:00:06.3]} 35. a4 {[%clk 0:00:42.6]} 35... Re6+ {[%clk 0:00:06.4]} 36.
Kd2 {[%clk 0:00:42.8]} 36... Re1 {[%clk 0:00:07.9]} 37. Kxe1 {[%clk 0:00:43.5]}
1-0

[Event "*** Titled Tuesday Blitz"]
[Site "Chess.com"]
[Date "2019.01.01"]
[Round "4"]
[White "xxysoul6"]
[Black "Korchmar_Vasiliy"]
[Result "1-0"]
[WhiteElo "2912"]
[BlackElo "2784"]
[TimeControl "180+2"]
[EndTime "13:54:35 PST"]
[Termination "xxysoul6 won by resignation"]

1. d4 {[%clk 0:03:01.9]} 1... Nf6 {[%clk 0:03:00.7]} 2. c4 {[%clk 0:03:02.7]}
2... g6 {[%clk 0:03:01.9]} 3. Nc3 {[%clk 0:03:03.6]} 3... d5 {[%clk 0:03:03]} 4.
Nf3 {[%clk 0:03:04.7]} 4... Bg7 {[%clk 0:03:03.9]} 5. h4 {[%clk 0:03:06]} 5...
Bg4 {[%clk 0:02:46.6]} 6. Ne5 {[%clk 0:03:02.3]} 6... Bf5 {[%clk 0:02:46.4]} 7.
Bg5 {[%clk 0:02:59.4]} 7... c5 {[%clk 0:02:35.6]} 8. dxc5 {[%clk 0:02:25.7]}
8... O-O {[%clk 0:02:35.7]} 9. cxd5 {[%clk 0:02:20.7]} 9... Ne4 {[%clk
0:02:27.8]} 10. Bf4 {[%clk 0:01:20.1]} 10... Nxc3 {[%clk 0:02:08.9]} 11. bxc3
{[%clk 0:01:21.1]} 11... Na6 {[%clk 0:02:10.8]} 12. f3 {[%clk 0:01:15.4]} 12...
Nxc5 {[%clk 0:01:34.5]} 13. e4 {[%clk 0:01:16.7]} 13... Qd6 {[%clk 0:01:36.2]}
14. Qd4 {[%clk 0:01:05.4]} 14... Nd7 {[%clk 0:01:21]} 15. exf5 {[%clk
0:01:01.3]} 15... Nxe5 {[%clk 0:01:22.1]} 16. Be2 {[%clk 0:00:57.1]} 16... Nxf3+
{[%clk 0:00:57.6]} 17. Bxf3 {[%clk 0:00:54.6]} 17... Bxd4 {[%clk 0:00:59]} 18.
Bxd6 {[%clk 0:00:55]} 18... Bxc3+ {[%clk 0:01:00.6]} 19. Ke2 {[%clk 0:00:54.6]}
19... exd6 {[%clk 0:01:01.5]} 20. Rac1 {[%clk 0:00:54.6]} 20... Rac8 {[%clk
0:01:02.9]} 21. Kd3 {[%clk 0:00:52.5]} 21... Be5 {[%clk 0:00:42.3]} 22. Bg4
{[%clk 0:00:53.2]} 22... Rc5 {[%clk 0:00:11.9]} 23. Rxc5 {[%clk 0:00:53.5]}
23... dxc5 {[%clk 0:00:13.8]} 24. Re1 {[%clk 0:00:55.1]} 24... Bd6 {[%clk
0:00:14.5]} 25. fxg6 {[%clk 0:00:54.9]} 25... hxg6 {[%clk 0:00:15.1]} 26. a4
{[%clk 0:00:54.6]} 26... b6 {[%clk 0:00:13.8]} 27. Kc4 {[%clk 0:00:54.5]} 27...
Rd8 {[%clk 0:00:09.6]} 28. Kb5 {[%clk 0:00:52.5]} 28... Bg3 {[%clk 0:00:09.7]}
29. Rd1 {[%clk 0:00:53.8]} 29... Bxh4 {[%clk 0:00:08.2]} 30. d6 {[%clk
0:00:54.8]} 30... f5 {[%clk 0:00:04.8]} 31. Bf3 {[%clk 0:00:56]} 31... Bg3
{[%clk 0:00:04.2]} 32. d7 {[%clk 0:00:57]} 32... Kf7 {[%clk 0:00:05.3]} 33. Kc6
{[%clk 0:00:58]} 33... c4 {[%clk 0:00:04.4]} 34. Bd5+ {[%clk 0:00:58.5]} 34...
Kf6 {[%clk 0:00:04.4]} 35. Bxc4 {[%clk 0:01:00]} 35... g5 {[%clk 0:00:04.1]} 36.
Rd3 {[%clk 0:00:59.5]} 36... Be5 {[%clk 0:00:04.4]} 37. Rh3 {[%clk 0:00:59.6]}
37... g4 {[%clk 0:00:02.6]} 38. Rh6+ {[%clk 0:01:00.7]} 38... Kg7 {[%clk
0:00:03.3]} 39. Re6 {[%clk 0:01:01.5]} 39... Bb8 {[%clk 0:00:03.5]} 40. Re8
{[%clk 0:01:02.4]} 1-0

[Event "*** Titled Tuesday Blitz"]
[Site "Chess.com"]
[Date "2019.01.01"]
[Round "4"]
[White "StoreySniper"]
[Black "TheNomNomFactor"]
[Result "1-0"]
[WhiteElo "2334"]
[BlackElo "2396"]
[TimeControl "180+2"]
[EndTime "13:54:41 PST"]
[Termination "StoreySniper won by resignation"]

1. g3 {[%clk 0:03:01.2]} 1... Nf6 {[%clk 0:02:56.8]} 2. Bg2 {[%clk 0:03:01.9]}
2... g6 {[%clk 0:02:57.3]} 3. c4 {[%clk 0:03:03.4]} 3... Bg7 {[%clk 0:02:57.6]}
4. Nc3 {[%clk 0:03:05.1]} 4... O-O {[%clk 0:02:53.9]} 5. d4 {[%clk 0:03:05.4]}
5... c5 {[%clk 0:02:53.4]} 6. d5 {[%clk 0:03:06.2]} 6... e6 {[%clk 0:02:53.9]}
7. e4 {[%clk 0:03:05.7]} 7... exd5 {[%clk 0:02:53.9]} 8. exd5 {[%clk 0:03:06.5]}
8... d6 {[%clk 0:02:52.5]} 9. Nge2 {[%clk 0:03:07.5]} 9... Re8 {[%clk
0:02:49.1]} 10. O-O {[%clk 0:03:08.4]} 10... Bf5 {[%clk 0:02:37.9]} 11. Bf4
{[%clk 0:03:09.3]} 11... Ne4 {[%clk 0:02:35.3]} 12. Nxe4 {[%clk 0:03:08.8]}
12... Bxe4 {[%clk 0:02:37.2]} 13. f3 {[%clk 0:03:06.2]} 13... Bf5 {[%clk
0:02:31]} 14. Qd2 {[%clk 0:03:06.5]} 14... Qb6 {[%clk 0:02:22.2]} 15. Nc3 {[%clk
0:03:02.5]} 15... Na6 {[%clk 0:02:15.1]} 16. Rae1 {[%clk 0:03:02.2]} 16... Nb4
{[%clk 0:02:08.5]} 17. Ne4 {[%clk 0:02:55.4]} 17... Bxe4 {[%clk 0:01:52.4]} 18.
fxe4 {[%clk 0:02:56.4]} 18... Nxa2 {[%clk 0:01:48]} 19. Kh1 {[%clk 0:02:45.1]}
19... Be5 {[%clk 0:01:45]} 20. Bxe5 {[%clk 0:02:21.4]} 20... Rxe5 {[%clk
0:01:44.1]} 21. Rf6 {[%clk 0:02:22.7]} 21... Nb4 {[%clk 0:01:31.4]} 22. Ref1
{[%clk 0:02:22.2]} 22... Rf8 {[%clk 0:01:29.5]} 23. Bh3 {[%clk 0:02:17.6]} 23...
Re7 {[%clk 0:00:39.1]} 24. e5 {[%clk 0:02:13.3]} 24... Rxe5 {[%clk 0:00:27.8]}
25. Be6 {[%clk 0:02:13.7]} 25... Qc7 {[%clk 0:00:21.2]} 26. Rxf7 {[%clk
0:02:10.6]} 26... Rxf7 {[%clk 0:00:23.1]} 27. Rxf7 {[%clk 0:02:11.1]} 27... Qxf7
{[%clk 0:00:25]} 28. Bxf7+ {[%clk 0:02:09]} 28... Kxf7 {[%clk 0:00:26.9]} 29.
Qh6 {[%clk 0:01:56.1]} 29... Kg8 {[%clk 0:00:25.7]} 30. Qh3 {[%clk 0:01:57.3]}
30... Re7 {[%clk 0:00:23.8]} 31. Qc8+ {[%clk 0:01:57.6]} 31... Kg7 {[%clk
0:00:20.5]} 32. Qd8 {[%clk 0:01:54.9]} 32... Re1+ {[%clk 0:00:16.5]} 33. Kg2
{[%clk 0:01:55.2]} 33... Re2+ {[%clk 0:00:18.4]} 34. Kf3 {[%clk 0:01:36.2]}
34... Rxb2 {[%clk 0:00:20.3]} 35. Qe7+ {[%clk 0:01:32.4]} 35... Kh6 {[%clk
0:00:16.5]} 36. Qf8+ {[%clk 0:01:32.3]} 36... Kh5 {[%clk 0:00:14.1]} 37. g4+
{[%clk 0:01:27.4]} 37... Kg5 {[%clk 0:00:10.6]} 38. h4+ {[%clk 0:01:15.1]} 38...
Kxh4 {[%clk 0:00:08.6]} 39. Qf6+ {[%clk 0:01:16.4]} 39... Kh3 {[%clk 0:00:04.5]}
40. Qxb2 {[%clk 0:01:17]} 40... Nd3 {[%clk 0:00:05.3]} 41. Qg2+ {[%clk
0:01:06.7]} 41... Kh4 {[%clk 0:00:05.8]} 42. Qh2+ {[%clk 0:01:03.5]} 42... Kg5
{[%clk 0:00:06.5]} 43. Qd2+ {[%clk 0:01:04.3]} 1-0

[Event "*** Titled Tuesday Blitz"]
[Site "Chess.com"]
[Date "2019.01.01"]
[Round "4"]
[White "2165149677570"]
[Black "jacky72"]
[Result "0-1"]
[WhiteElo "2348"]
[BlackElo "2605"]
[TimeControl "180+2"]
[EndTime "13:54:50 PST"]
[Termination "jacky72 won by resignation"]

1. e4 {[%clk 0:03:01.9]} 1... e5 {[%clk 0:03:00.8]} 2. Nf3 {[%clk 0:03:01.6]}
2... Nc6 {[%clk 0:03:02.7]} 3. Bb5 {[%clk 0:02:56.2]} 3... a6 {[%clk 0:03:04.1]}
4. Ba4 {[%clk 0:02:56.3]} 4... d6 {[%clk 0:03:06]} 5. Bxc6+ {[%clk 0:02:50.3]}
5... bxc6 {[%clk 0:03:07]} 6. d4 {[%clk 0:02:51.1]} 6... exd4 {[%clk 0:03:07.9]}
7. Nxd4 {[%clk 0:02:52.5]} 7... c5 {[%clk 0:03:09.8]} 8. Ne2 {[%clk 0:02:52.6]}
8... Be7 {[%clk 0:03:11.1]} 9. O-O {[%clk 0:02:54.1]} 9... Nf6 {[%clk
0:03:12.6]} 10. Nbc3 {[%clk 0:02:55.3]} 10... O-O {[%clk 0:03:14]} 11. f3 {[%clk
0:02:53.7]} 11... Re8 {[%clk 0:03:14.4]} 12. Be3 {[%clk 0:02:53.9]} 12... Bf8
{[%clk 0:03:15]} 13. Bf2 {[%clk 0:02:54.3]} 13... Qe7 {[%clk 0:03:16.2]} 14. Nf4
{[%clk 0:02:54.4]} 14... Bb7 {[%clk 0:03:15.2]} 15. Nfd5 {[%clk 0:02:52.8]}
15... Nxd5 {[%clk 0:03:14.4]} 16. Nxd5 {[%clk 0:02:48.1]} 16... Qd7 {[%clk
0:03:15.3]} 17. Qd2 {[%clk 0:02:46.3]} 17... Rab8 {[%clk 0:03:15.3]} 18. c4
{[%clk 0:02:47]} 18... Bxd5 {[%clk 0:03:13.3]} 19. exd5 {[%clk 0:02:46.3]} 19...
g6 {[%clk 0:03:14.1]} 20. b3 {[%clk 0:02:45.3]} 20... Bg7 {[%clk 0:03:16]} 21.
Rae1 {[%clk 0:02:46.7]} 21... h5 {[%clk 0:03:14.7]} 22. Rxe8+ {[%clk 0:02:46.3]}
22... Rxe8 {[%clk 0:03:16.6]} 23. Re1 {[%clk 0:02:47.6]} 23... Ra8 {[%clk
0:03:14.9]} 24. Qa5 {[%clk 0:02:47.6]} 24... c6 {[%clk 0:03:15.5]} 25. Qb6
{[%clk 0:02:42.5]} 25... cxd5 {[%clk 0:03:15.6]} 26. cxd5 {[%clk 0:02:44.4]}
26... a5 {[%clk 0:03:14.9]} 27. a4 {[%clk 0:02:33.9]} 27... Kh7 {[%clk
0:03:16.2]} 28. Re4 {[%clk 0:02:16.7]} 28... Ra7 {[%clk 0:03:02.5]} 29. Be1
{[%clk 0:02:09.4]} 29... Rb7 {[%clk 0:02:59.8]} 30. Qc6 {[%clk 0:02:00.9]} 30...
Qxc6 {[%clk 0:02:52.4]} 31. dxc6 {[%clk 0:02:02]} 31... Rc7 {[%clk 0:02:54.3]}
32. Bxa5 {[%clk 0:02:01.2]} 32... Rxc6 {[%clk 0:02:55.8]} 33. Bd8 {[%clk
0:01:52.1]} 33... d5 {[%clk 0:02:52]} 34. Re2 {[%clk 0:01:47.1]} 34... Bd4+
{[%clk 0:02:46.2]} 35. Kf1 {[%clk 0:01:42]} 35... Rc8 {[%clk 0:02:48.1]} 36. Bb6
{[%clk 0:01:40.3]} 36... Kg7 {[%clk 0:02:46.9]} 37. a5 {[%clk 0:01:37.2]} 37...
Rb8 {[%clk 0:02:37.4]} 38. Re7 {[%clk 0:01:16.5]} 38... Kf6 {[%clk 0:02:35.9]}
39. Rc7 {[%clk 0:01:13.7]} 39... Ke6 {[%clk 0:02:36.9]} 40. Ke2 {[%clk
0:01:08.5]} 40... Bg1 {[%clk 0:02:34.7]} 41. Kd3 {[%clk 0:00:49.4]} 41... c4+
{[%clk 0:02:32.1]} 42. bxc4 {[%clk 0:00:47.6]} 42... Bxb6 {[%clk 0:02:27.3]} 43.
Rc6+ {[%clk 0:00:48.5]} 43... Kd7 {[%clk 0:02:22.3]} 44. Rxb6 {[%clk 0:00:49.4]}
44... dxc4+ {[%clk 0:02:23.4]} 45. Kxc4 {[%clk 0:00:50.4]} 45... Rc8+ {[%clk
0:02:24.5]} 46. Kd5 {[%clk 0:00:35.1]} 46... Rc2 {[%clk 0:02:25]} 47. Rb7+
{[%clk 0:00:30.8]} 47... Kc8 {[%clk 0:02:26.4]} 48. a6 {[%clk 0:00:23.4]} 48...
Rxg2 {[%clk 0:02:26.1]} 49. Rxf7 {[%clk 0:00:24.9]} 49... Kb8 {[%clk 0:02:24.3]}
50. Kc6 {[%clk 0:00:20.1]} 50... Rxh2 {[%clk 0:02:20.5]} 51. Kb6 {[%clk
0:00:17.5]} 51... Rb2+ {[%clk 0:02:20.5]} 52. Kc6 {[%clk 0:00:18.8]} 52... Rb3
{[%clk 0:02:11.1]} 53. f4 {[%clk 0:00:08.1]} 53... Ra3 {[%clk 0:02:07]} 54. Kb6
{[%clk 0:00:07.2]} 54... Rb3+ {[%clk 0:02:08.3]} 55. Kc6 {[%clk 0:00:08.7]}
55... h4 {[%clk 0:02:09.1]} 56. Rh7 {[%clk 0:00:09.4]} 56... h3 {[%clk
0:02:09.3]} 57. Kd6 {[%clk 0:00:08.5]} 57... Ra3 {[%clk 0:02:07.2]} 58. Rxh3
{[%clk 0:00:08.9]} 58... Rxh3 {[%clk 0:02:07.6]} 59. Ke6 {[%clk 0:00:09.1]}
59... Rf3 {[%clk 0:02:08.3]} 60. Ke5 {[%clk 0:00:10.4]} 60... Ka7 {[%clk
0:02:09.1]} 0-1

[Event "*** Titled Tuesday Blitz"]
[Site "Chess.com"]
[Date "2019.01.01"]
[Round "4"]
[White "Kirill_Klukin"]
[Black "josmito10"]
[Result "0-1"]
[WhiteElo "2594"]
[BlackElo "2777"]
[TimeControl "180+2"]
[EndTime "13:54:52 PST"]
[Termination "josmito10 won by resignation"]

1. d4 {[%clk 0:02:59.4]} 1... Nf6 {[%clk 0:03:00.9]} 2. Nf3 {[%clk 0:03:00.1]}
2... d5 {[%clk 0:03:01.2]} 3. c4 {[%clk 0:02:55.5]} 3... e6 {[%clk 0:03:01.9]}
4. Nc3 {[%clk 0:02:55.9]} 4... dxc4 {[%clk 0:03:03.1]} 5. e3 {[%clk 0:02:56.7]}
5... a6 {[%clk 0:03:04.1]} 6. a4 {[%clk 0:02:55.7]} 6... c5 {[%clk 0:03:05.4]}
7. Bxc4 {[%clk 0:02:56.7]} 7... Nc6 {[%clk 0:03:05.8]} 8. O-O {[%clk 0:02:54.1]}
8... Bd6 {[%clk 0:03:03.7]} 9. h3 {[%clk 0:02:53.3]} 9... O-O {[%clk 0:03:03.8]}
10. b3 {[%clk 0:02:50.7]} 10... Qe7 {[%clk 0:02:54.6]} 11. Bb2 {[%clk
0:02:50.4]} 11... Rd8 {[%clk 0:02:55.1]} 12. Qe2 {[%clk 0:02:44.6]} 12... cxd4
{[%clk 0:02:44.9]} 13. exd4 {[%clk 0:02:44.1]} 13... Na5 {[%clk 0:02:44.9]} 14.
Rfe1 {[%clk 0:02:31]} 14... Bd7 {[%clk 0:02:33.3]} 15. d5 {[%clk 0:02:11.3]}
15... Nxc4 {[%clk 0:02:22.1]} 16. bxc4 {[%clk 0:02:11.9]} 16... Re8 {[%clk
0:02:12.6]} 17. Ne4 {[%clk 0:02:00.3]} 17... Nxe4 {[%clk 0:01:59.8]} 18. Qxe4
{[%clk 0:02:02.2]} 18... exd5 {[%clk 0:01:58.2]} 19. Qd3 {[%clk 0:00:53.7]}
19... Qd8 {[%clk 0:01:26.5]} 20. Qd4 {[%clk 0:00:33.3]} 20... Bf8 {[%clk
0:01:23.7]} 21. cxd5 {[%clk 0:00:34.4]} 21... Rxe1+ {[%clk 0:01:14.8]} 22. Rxe1
{[%clk 0:00:34.9]} 22... Rc8 {[%clk 0:01:16.7]} 23. Ne5 {[%clk 0:00:35.3]} 23...
Bf5 {[%clk 0:01:08.1]} 24. Ng4 {[%clk 0:00:34.4]} 24... Bxg4 {[%clk 0:01:06.6]}
25. Qxg4 {[%clk 0:00:36.3]} 25... Rc2 {[%clk 0:01:06.5]} 26. Ba1 {[%clk
0:00:26.9]} 26... Qxd5 {[%clk 0:00:38.4]} 27. Bxg7 {[%clk 0:00:25.8]} 27... h5
{[%clk 0:00:39.7]} 28. Qd4 {[%clk 0:00:18.3]} 28... Qxd4 {[%clk 0:00:15.4]} 29.
Bxd4 {[%clk 0:00:20.2]} 29... Rc4 {[%clk 0:00:16]} 30. Bf6 {[%clk 0:00:21.3]}
30... Bc5 {[%clk 0:00:10.8]} 31. Re8+ {[%clk 0:00:15.2]} 31... Kh7 {[%clk
0:00:12]} 32. Rb8 {[%clk 0:00:16.4]} 32... Rc1+ {[%clk 0:00:12.1]} 0-1